[Event "Int SVK-ch Open 2020"]
[Site "Drienica"]
[Date "2020.08.08"]
[Round "2.20"]
[White "Socko, Weronika"]
[Black "Magda, Juraj"]
[Result "1/2-1/2"]
[ECO "E91"]
[WhiteElo "1741"]
[BlackElo "1261"]
[Annotator "NA"]
[PlyCount "68"]
[EventDate "2020.08.07"]
[EventType "swiss"]
[EventCountry "SVK"]
[SourceTitle "playchess.com"]
[Source "ChessBase"]
[SourceQuality "1"]
[TimeControl "40/5400+30:1800+30"]

1. d4 Nf6 2. c4 g6 3. Nc3 Bg7 4. Nf3 O-O 5. e4 d6 6. Be2 Bg4 7. O-O c5 8. Be3 cxd4 9. Nxd4 Bxe2 10. Qxe2 {[%emt 0:10:30]} Nc6 {[%emt 0:15:23]} 11. Rad1 {[%emt 0:01:52]} Qd7 {[%emt 0:04:08]} 12. h3 {[%emt 0:06:58]} Qc7 {[%emt 0:06:01]} 13. f4 {[%emt 0:03:36]} Nxd4 {[%emt 0:01:00]} 14. Bxd4 {[%emt 0:01:12]} Rfe8 {[%emt 0:10:22]} 15. Rf3 {[%emt 0:02:44]} e5 {[%emt 0:03:12]} 16. fxe5 {[%emt 0:10:05]} dxe5 {[%emt 0:00:28]} 17. Bf2 {[%emt 0:01:13]} a6 {[%emt 0:02:26]} 18. Bh4 {[%emt 0:02:52]} Qc5+ {[%emt 0:02:28]} 19. Kh2 {[%emt 0:02:07]} Re6 {[%emt 0:01:41]} 20. Bxf6 {[%emt 0:12:40]} Rxf6 {[%emt 0:00:34]} 21. Rd7 {[%emt 0:05:50]} Qc6 {[%emt 0:10:50]} 22. Rxf6 {[%emt 0:06:50]} Qxd7 {[%emt 0:01:34]} 23. Rf3 {[%emt 0:03:11]} Qd6 {[%emt 0:08:46]} 24. Qf2 {[%emt 0:01:52]} f5 {[%emt 0:04:29]} 25. c5 {[%emt 0:02:23]} Qd4 {[%emt 0:02:59]} 26. Qc2 {[%emt 0:05:40]} Qxc5 {[%emt 0:08:32]} 27. exf5 {[%emt 0:03:39]} Qc7 {[%emt 0:02:02]} 28. Qb3+ {[%emt 0:03:50]} Kh8 {[%emt 0:03:20]} 29. Nd5 {[%emt 0:05:12]} Qd6 {[%emt 0:03:50]} 30. f6 {[%emt 0:04:35]} e4+ {[%emt 0:01:01]} 31. Rg3 {[%emt 0:02:06]} Bxf6 {[%emt 0:00:16]} 32. Nxf6 {[%emt 0:01:17]} Qxf6 {[%emt 0:00:25]} 33. Qxb7 {[%emt 0:01:01]} Rf8 {[%emt 0:00:37]} 34. Qxe4 {[%emt 0:00:55]} Qxb2 {[%emt 0:00:38]} 1/2-1/2

[Event "Int SVK-ch Open 2020"]
[Site "Drienica"]
[Date "2020.08.08"]
[Round "2.21"]
[White "Varga, Lukas"]
[Black "Striskova Lucia"]
[Result "*"]
[ECO "C67"]
[WhiteElo "2000"]
[BlackElo "1706"]
[Annotator "ChessBase"]
[PlyCount "57"]
[EventDate "2020.08.07"]
[EventType "swiss"]
[EventCountry "SVK"]
[SourceTitle "playchess.com"]
[Source "ChessBase"]
[SourceQuality "1"]
[TimeControl "40/5400+30:1800+30"]

1. e4 {[%emt 0:00:00]} e5 {[%emt 0:00:00]} 2. Nf3 {[%emt 0:00:25]} Nc6 {[%emt 0:00:00]} 3. Bb5 {[%emt 0:00:08]} Nf6 {[%emt 0:00:10]} 4. O-O {[%emt 0:00:06]} Nxe4 {[%emt 0:00:39]} 5. d4 {[%emt 0:00:11]} Nd6 {[%emt 0:00:20]} 6. Bxc6 {[%emt 0:00:07]} dxc6 {[%emt 0:00:09]} 7. dxe5 {[%emt 0:00:06]} Nf5 {[%emt 0:00:09]} 8. Qxd8+ {[%emt 0:00:17]} Kxd8 {[%emt 0:00:11]} 9. h3 {[%emt 0:01:28]} Bc5 {[%emt 0:04:14]} 10. Nc3 {[%emt 0:03:31]} a6 {[%emt 0:03:28]} 11. Ne4 {[%emt 0:03:42]} Bb6 {[%emt 0:00:26]} 12. Re1 {[%emt 0:03:55]} h6 {[%emt 0:01:16]} 13. g4 {[%emt 0:00:25]} Ne7 {[%emt 0:00:12]} 14. Be3 {[%emt 0:00:08]} Nd5 {[%emt 0:02:17]} 15. Bxb6 {[%emt 0:00:40]} Nxb6 {[%emt 0:00:08]} 16. Kg2 {[%emt 0:03:54]} Ke7 {[%emt 0:00:49]} 17. Nc5 {[%emt 0:05:14]} Nd7 {[%emt 0:01:29]} 18. Ne4 {[%emt 0:01:18]} Re8 {[%emt 0:04:09]} 19. Nd4 {[%emt 0:03:23]} Kf8 {[%emt 0:11:51]} 20. f4 {[%emt 0:01:54]} c5 {[%emt 0:02:14]} 21. Nf5 {[%emt 0:05:31]} b6 {[%emt 0:00:13]} 22. Rad1 {[%emt 0:00:20]} Nb8 {[%emt 0:01:02]} 23. Kf2 {[%emt 0:02:24]} Nc6 {[%emt 0:00:42]} 24. Rd2 {[%emt 0:01:14]} Be6 {[%emt 0:00:27]} 25. Ne3 {[%emt 0:01:11]} Rad8 {[%emt 0:02:25]} 26. Red1 {[%emt 0:02:50]} Ke7 {[%emt 0:05:45]} 27. Rxd8 {[%emt 0:06:04]} Rxd8 {[%emt 0:04:29]} 28. Rxd8 {[%emt 0:05:33]} Kxd8 {[%emt 0:00:30]} 29. Kg3 {[%emt 0:00:30]} *

[Event "Int SVK-ch Open 2020"]
[Site "Drienica"]
[Date "2020.08.08"]
[Round "2.21"]
[White "Varga, Lukas"]
[Black "Striskova Lucia"]
[Result "1-0"]
[ECO "C67"]
[WhiteElo "2000"]
[BlackElo "1706"]
[Annotator "ChessBase"]
[PlyCount "97"]
[EventDate "2020.08.07"]
[EventType "swiss"]
[EventCountry "SVK"]
[SourceTitle "playchess.com"]
[Source "ChessBase"]
[SourceQuality "1"]
[TimeControl "40/5400+30:1800+30"]

1. e4 {[%emt 0:00:00]} e5 {[%emt 0:00:00]} 2. Nf3 {[%emt 0:00:25]} Nc6 {[%emt 0:00:00]} 3. Bb5 {[%emt 0:00:08]} Nf6 {[%emt 0:00:10]} 4. O-O {[%emt 0:00:06]} Nxe4 {[%emt 0:00:39]} 5. d4 {[%emt 0:00:11]} Nd6 {[%emt 0:00:20]} 6. Bxc6 {[%emt 0:00:07]} dxc6 {[%emt 0:00:09]} 7. dxe5 {[%emt 0:00:06]} Nf5 {[%emt 0:00:09]} 8. Qxd8+ {[%emt 0:00:17]} Kxd8 {[%emt 0:00:11]} 9. h3 {[%emt 0:01:28]} Bc5 {[%emt 0:04:14]} 10. Nc3 {[%emt 0:03:31]} a6 {[%emt 0:03:28]} 11. Ne4 {[%emt 0:03:42]} Bb6 {[%emt 0:00:26]} 12. Re1 {[%emt 0:03:55]} h6 {[%emt 0:01:16]} 13. g4 {[%emt 0:00:25]} Ne7 {[%emt 0:00:12]} 14. Be3 {[%emt 0:00:08]} Nd5 {[%emt 0:02:17]} 15. Bxb6 {[%emt 0:00:40]} Nxb6 {[%emt 0:00:08]} 16. Kg2 {[%emt 0:03:54]} Ke7 {[%emt 0:00:49]} 17. Nc5 {[%emt 0:05:14]} Nd7 {[%emt 0:01:29]} 18. Ne4 {[%emt 0:01:18]} Re8 {[%emt 0:04:09]} 19. Nd4 {[%emt 0:03:23]} Kf8 {[%emt 0:11:51]} 20. f4 {[%emt 0:01:54]} c5 {[%emt 0:02:14]} 21. Nf5 {[%emt 0:05:31]} b6 {[%emt 0:00:13]} 22. Rad1 {[%emt 0:00:20]} Nb8 {[%emt 0:01:02]} 23. Kf2 {[%emt 0:02:24]} Nc6 {[%emt 0:00:42]} 24. Rd2 {[%emt 0:01:14]} Be6 {[%emt 0:00:27]} 25. Ne3 {[%emt 0:01:11]} Rad8 {[%emt 0:02:25]} 26. Red1 {[%emt 0:02:50]} Ke7 {[%emt 0:05:45]} 27. Rxd8 {[%emt 0:06:04]} Rxd8 {[%emt 0:04:29]} 28. Rxd8 {[%emt 0:05:33]} Kxd8 {[%emt 0:00:30]} 29. Nc3 {[%emt 0:00:30]} Bc8 {[%emt 0:01:33]} 30. Kf3 {[%emt 0:07:58]} Bb7 {[%emt 0:00:30]} 31. Kg3 {[%emt 0:00:30]} Nd4 {[%emt 0:00:30]} 32. f5 {[%emt 0:00:30]} Kd7 {[%emt 0:00:30]} 33. Kf4 {[%emt 0:00:30]} b5 {[%emt 0:00:30]} 34. g5 {[%emt 0:00:30]} hxg5+ {[%emt 0:02:20]} 35. Kxg5 {[%emt 0:00:11]} Nf3+ {[%emt 0:00:21]} 36. Kf4 {[%emt 0:00:26]} Nd4 {[%emt 0:00:41]} 37. h4 {[%emt 0:00:31]} Bc6 {[%emt 0:02:53]} 38. h5 {[%emt 0:01:33]} b4 {[%emt 0:08:25]} 39. Ncd5 {[%emt 0:03:23]} Bxd5 {[%emt 0:03:51]} 40. Nxd5 {[%emt 0:01:06]} Kd8 {[%emt 0:01:06]} 41. c3 {[%emt 0:30:44]} bxc3 {[%emt 0:30:42]} 42. Nxc3 {[%emt 0:00:40]} Ke8 {[%emt 0:01:00]} 43. Nd5 {[%emt 0:00:55]} a5 {[%emt 0:00:27]} 44. Nxc7+ {[%emt 0:01:16]} Kf8 {[%emt 0:00:40]} 45. e6 {[%emt 0:01:15]} Ke7 {[%emt 0:02:35]} 46. Nd5+ {[%emt 0:01:26]} Ke8 {[%emt 0:00:19]} 47. Ke5 {[%emt 0:00:32]} f6+ {[%emt 0:02:08]} 48. Nxf6+ {[%emt 0:00:14]} gxf6+ {[%emt 0:00:22]} 49. Kxf6 {[%emt 0:00:08]} 1-0

[Event "Int SVK-ch Open 2020"]
[Site "Drienica"]
[Date "2020.08.08"]
[Round "2.21"]
[White "Kubikova, Nina"]
[Black "Bochnickova, Simona"]
[Result "1/2-1/2"]
[ECO "C42"]
[WhiteElo "1256"]
[BlackElo "1785"]
[Annotator "NA"]
[PlyCount "96"]
[EventDate "2020.08.07"]
[EventType "swiss"]
[EventCountry "SVK"]
[SourceTitle "playchess.com"]
[Source "ChessBase"]
[SourceQuality "1"]
[TimeControl "40/5400+30:1800+30"]

1. e4 {[%emt 0:00:00]} e5 {[%emt 0:00:00]} 2. Nf3 {[%emt 0:00:00]} Nf6 {[%emt 0:00:00]} 3. Nxe5 {[%emt 0:00:33]} d6 {[%emt 0:00:00]} 4. Nf3 {[%emt 0:00:06]} Nxe4 {[%emt 0:00:07]} 5. Qe2 {[%emt 0:00:08]} Qe7 {[%emt 0:00:16]} 6. Nc3 {[%emt 0:00:47]} Nxc3 {[%emt 0:01:16]} 7. dxc3 {[%emt 0:00:48]} Bg4 {[%emt 0:00:24]} 8. Qxe7+ {[%emt 0:01:05]} Bxe7 {[%emt 0:00:08]} 9. Be2 {[%emt 0:00:13]} Nd7 {[%emt 0:01:14]} 10. Be3 {[%emt 0:02:04]} O-O {[%emt 0:01:01]} 11. h3 {[%emt 0:02:08]} Bf5 {[%emt 0:00:45]} 12. Nd4 {[%emt 0:03:12]} Bg6 {[%emt 0:00:43]} 13. O-O-O {[%emt 0:01:37]} Rfe8 {[%emt 0:04:57]} 14. Nb5 {[%emt 0:01:43]} Rec8 {[%emt 0:01:32]} 15. Bf3 {[%emt 0:00:25]} c6 {[%emt 0:01:09]} 16. Nxd6 {[%emt 0:00:41]} Bxd6 {[%emt 0:00:55]} 17. Rxd6 {[%emt 0:00:11]} Nb6 {[%emt 0:04:52]} 18. Bxb6 {[%emt 0:05:07]} axb6 {[%emt 0:00:12]} 19. a3 {[%emt 0:00:10]} Rd8 {[%emt 0:00:37]} 20. Rhd1 {[%emt 0:00:20]} Rxd6 {[%emt 0:00:22]} 21. Rxd6 {[%emt 0:00:11]} Bf5 {[%emt 0:01:17]} 22. g4 {[%emt 0:02:56]} Be6 {[%emt 0:00:49]} 23. Bg2 {[%emt 0:03:02]} Kf8 {[%emt 0:00:34]} 24. Rd4 {[%emt 0:02:49]} Re8 {[%emt 0:02:10]} 25. Rb4 {[%emt 0:04:07]} b5 {[%emt 0:00:36]} 26. Bf1 {[%emt 0:00:13]} Bxg4 {[%emt 0:01:32]} 27. Kd2 {[%emt 0:02:05]} Rd8+ {[%emt 0:02:57]} 28. Rd4 {[%emt 0:00:15]} Rxd4+ {[%emt 0:00:08]} 29. cxd4 {[%emt 0:00:08]} Bf5 {[%emt 0:00:12]} 30. Bg2 {[%emt 0:00:24]} Ke7 {[%emt 0:00:38]} 31. c3 {[%emt 0:00:57]} Kd6 {[%emt 0:01:57]} 32. Ke3 {[%emt 0:01:52]} Be6 {[%emt 0:00:24]} 33. Bf1 {[%emt 0:02:53]} Bc4 {[%emt 0:04:41]} 34. Bg2 {[%emt 0:02:59]} Bd5 {[%emt 0:01:24]} 35. Bf1 {[%emt 0:01:20]} g5 {[%emt 0:02:19]} 36. f4 {[%emt 0:01:54]} f6 {[%emt 0:00:27]} 37. Be2 {[%emt 0:10:51]} Be6 {[%emt 0:05:36]} 38. Bf1 {[%emt 0:03:29]} h5 {[%emt 0:00:07]} 39. Bg2 {[%emt 0:01:27]} Bd5 {[%emt 0:01:22]} 40. Bf1 {[%emt 0:00:00]} Ke6 {[%emt 0:00:00]} 41. fxg5 {[%emt 0:04:49]} fxg5 {[%emt 0:01:15]} 42. Be2 {[%emt 0:00:12]} Bg2 {[%emt 0:00:56]} 43. Bxh5 {[%emt 0:02:31]} Bxh3 {[%emt 0:00:08]} 44. Be2 {[%emt 0:00:26]} Kf5 {[%emt 0:01:21]} 45. c4 {[%emt 0:00:46]} bxc4 {[%emt 0:01:44]} 46. Bxc4 {[%emt 0:00:09]} g4 {[%emt 0:00:13]} 47. d5 {[%emt 0:00:48]} Ke5 {[%emt 0:04:02]} 48. dxc6 {[%emt 0:00:55]} bxc6 {[%emt 0:00:15]} 1/2-1/2

[Event "Int SVK-ch Open 2020"]
[Site "Drienica"]
[Date "2020.08.08"]
[Round "2.22"]
[White "Kukan, Michal"]
[Black "Horbalova, Ivana"]
[Result "1-0"]
[ECO "A04"]
[WhiteElo "1760"]
[BlackElo "1311"]
[Annotator "NA"]
[PlyCount "69"]
[EventDate "2020.08.07"]
[EventType "swiss"]
[EventCountry "SVK"]
[SourceTitle "playchess.com"]
[Source "ChessBase"]
[SourceQuality "1"]
[TimeControl "40/5400+30:1800+30"]

1. Nf3 f5 2. d4 Nf6 3. Nc3 c6 4. Bg5 Ne4 5. Nxe4 fxe4 6. Ne5 d6 7. Nc4 h6 8. Bh4 g5 9. Bg3 Bg7 10. e3 Be6 11. Nd2 d5 12. Be2 Bf7 13. h4 Nd7 14. hxg5 hxg5 15. Rxh8+ Bxh8 16. Bh5 Nf6 17. Bxf7+ Kxf7 18. Qe2 Qd7 19. O-O-O Qg4 20. Qf1 Bg7 21. Be5 Rh8 22. f3 exf3 23. Nxf3 Qf5 24. Qe2 g4 25. Nh2 Ke6 26. Rf1 Qh5 27. Rf4 g3 28. Nf3 Qh1+ 29. Ne1 Bh6 30. Rf3 Rg8 31. Bxg3 Rg4 32. Rxf6+ Kxf6 33. Qxg4 Bxe3+ 34. Kd1 Qh7 35. Be5+ 1-0

[Event "Int SVK-ch Open 2020"]
[Site "Drienica"]
[Date "2020.08.08"]
[Round "2.23"]
[White "Bednar, Jan"]
[Black "Andras, Anton"]
[Result "1-0"]
[ECO "A25"]
[WhiteElo "2018"]
[BlackElo "1584"]
[Annotator "ChessBase"]
[PlyCount "36"]
[EventDate "2020.08.07"]
[EventType "swiss"]
[EventCountry "SVK"]
[SourceTitle "playchess.com"]
[Source "ChessBase"]
[SourceQuality "1"]
[TimeControl "40/5400+30:1800+30"]

1. c4 e5 2. Nc3 Nc6 3. g3 Bb4 4. Bg2 Bxc3 5. bxc3 Nf6 6. e4 O-O 7. Ne2 d6 8. O-O Be6 9. d3 h6 10. Rb1 b6 11. f4 Bg4 12. h3 Bxe2 13. Qxe2 Qd7 14. Be3 Rad8 15. d4 Rfe8 16. fxe5 dxe5 17. d5 Na5 18. Bxh6 c5 1-0

[Event "Int SVK-ch Open 2020"]
[Site "Drienica"]
[Date "2020.08.08"]
[Round "2.23"]
[White "Stanko Ivan"]
[Black "Orsag Milan"]
[Result "0-1"]
[ECO "B22"]
[WhiteElo "1848"]
[BlackElo "2300"]
[Annotator "ChessBase"]
[PlyCount "64"]
[EventDate "2020.08.07"]
[EventType "swiss"]
[EventCountry "SVK"]
[SourceTitle "playchess.com"]
[Source "ChessBase"]
[SourceQuality "1"]
[TimeControl "40/5400+30:1800+30"]

1. e4 {[%emt 0:00:00]} c5 {[%emt 0:00:00]} 2. c3 {[%emt 0:00:00]} Nf6 {[%emt 0:00:00]} 3. e5 {[%emt 0:00:13]} Nd5 {[%emt 0:00:03]} 4. Nf3 {[%emt 0:00:25]} e6 {[%emt 0:00:09]} 5. d4 {[%emt 0:00:33]} cxd4 {[%emt 0:00:07]} 6. cxd4 {[%emt 0:00:09]} b6 {[%emt 0:00:09]} 7. a3 {[%emt 0:00:36]} Be7 {[%emt 0:02:21]} 8. Be2 {[%emt 0:01:09]} O-O {[%emt 0:01:37]} 9. O-O {[%emt 0:02:12]} Bb7 {[%emt 0:02:45]} 10. Nc3 {[%emt 0:01:09]} Nxc3 {[%emt 0:02:51]} 11. bxc3 {[%emt 0:03:20]} d6 {[%emt 0:00:40]} 12. Re1 {[%emt 0:03:43]} Nd7 {[%emt 0:14:18]} 13. exd6 {[%emt 0:02:15]} Bxd6 {[%emt 0:00:07]} 14. h3 {[%emt 0:10:52]} Rc8 {[%emt 0:03:13]} 15. Bb2 {[%emt 0:00:55]} h6 {[%emt 0:05:07]} 16. a4 {[%emt 0:02:54]} Bd5 {[%emt 0:09:18]} 17. Ba6 {[%emt 0:11:21]} Rc7 {[%emt 0:01:24]} 18. Nd2 {[%emt 0:09:17]} Bf4 {[%emt 0:05:01]} 19. a5 {[%emt 0:09:24]} Bxg2 {[%emt 0:06:15]} 20. Kxg2 {[%emt 0:00:07]} Qg5+ {[%emt 0:00:06]} 21. Kh1 {[%emt 0:00:04]} Bxd2 {[%emt 0:00:10]} 22. Rg1 {[%emt 0:00:07]} Qd5+ {[%emt 0:02:44]} 23. Rg2 {[%emt 0:00:56]} Bg5 {[%emt 0:06:50]} 24. c4 {[%emt 0:02:11]} Qf5 {[%emt 0:00:17]} 25. Qb3 {[%emt 0:01:53]} e5 {[%emt 0:05:44]} 26. axb6 {[%emt 0:07:19]} axb6 {[%emt 0:00:20]} 27. dxe5 {[%emt 0:02:25]} Ra8 {[%emt 0:02:44]} 28. Qc3 {[%emt 0:09:50]} Nc5 {[%emt 0:03:22]} 29. Bb5 {[%emt 0:06:50]} Rd8 {[%emt 0:02:40]} 30. Kg1 {[%emt 0:04:28]} Ne4 {[%emt 0:03:24]} 31. Qc2 {[%emt 0:03:57]} Rd2 {[%emt 0:00:47]} 32. Ra8+ {[%emt 0:00:31]} Kh7 {[%emt 0:00:19]} 0-1

[Event "Int SVK-ch Open 2020"]
[Site "Drienica"]
[Date "2020.08.08"]
[Round "2.24"]
[White "Zahradnik Vladimir"]
[Black "Juhar Roman"]
[Result "0-1"]
[ECO "D11"]
[WhiteElo "1874"]
[BlackElo "2225"]
[Annotator "ChessBase"]
[PlyCount "102"]
[EventDate "2020.08.07"]
[EventType "swiss"]
[EventCountry "SVK"]
[SourceTitle "playchess.com"]
[Source "ChessBase"]
[SourceQuality "1"]
[TimeControl "40/5400+30:1800+30"]

1. d4 {[%emt 0:00:00]} d5 {[%emt 0:00:00]} 2. Nf3 {[%emt 0:00:00]} c6 {[%emt 0:00:00]} 3. c4 {[%emt 0:01:01]} dxc4 {[%emt 0:00:06]} 4. e3 {[%emt 0:00:23]} b5 {[%emt 0:00:10]} 5. a4 {[%emt 0:00:16]} Bb7 {[%emt 0:00:46]} 6. b3 {[%emt 0:00:57]} e6 {[%emt 0:00:15]} 7. bxc4 {[%emt 0:00:33]} b4 {[%emt 0:00:14]} 8. Bd3 {[%emt 0:02:05]} a5 {[%emt 0:00:06]} 9. Bb2 {[%emt 0:01:07]} Nf6 {[%emt 0:00:08]} 10. Nbd2 {[%emt 0:00:12]} c5 {[%emt 0:00:58]} 11. O-O {[%emt 0:00:30]} Be7 {[%emt 0:00:41]} 12. Qe2 {[%emt 0:01:45]} O-O {[%emt 0:00:13]} 13. dxc5 {[%emt 0:02:40]} Nbd7 {[%emt 0:01:12]} 14. Nb3 {[%emt 0:00:35]} Nxc5 {[%emt 0:00:07]} 15. Nxc5 {[%emt 0:00:09]} Bxc5 {[%emt 0:00:04]} 16. e4 {[%emt 0:00:32]} Rc8 {[%emt 0:00:34]} 17. e5 {[%emt 0:00:37]} Nh5 {[%emt 0:02:37]} 18. g3 {[%emt 0:10:05]} g6 {[%emt 0:02:35]} 19. Be4 {[%emt 0:02:31]} Qb6 {[%emt 0:02:42]} 20. Bxb7 {[%emt 0:00:35]} Qxb7 {[%emt 0:00:04]} 21. Nd2 {[%emt 0:02:21]} Rfd8 {[%emt 0:00:30]} 22. Ne4 {[%emt 0:00:30]} Be7 {[%emt 0:02:45]} 23. Rfd1 {[%emt 0:02:37]} Qc6 {[%emt 0:00:35]} 24. Rdc1 {[%emt 0:06:12]} Bc5 {[%emt 0:02:37]} 25. Qg4 {[%emt 0:07:06]} Rd3 {[%emt 0:06:59]} 26. Re1 {[%emt 0:02:08]} Rcd8 {[%emt 0:00:53]} 27. Qg5 {[%emt 0:01:23]} Qc7 {[%emt 0:02:30]} 28. g4 {[%emt 0:01:05]} Be7 {[%emt 0:00:19]} 29. Qc1 {[%emt 0:02:46]} Ng7 {[%emt 0:01:54]} 30. c5 {[%emt 0:03:49]} R8d5 {[%emt 0:01:37]} 31. Qh6 {[%emt 0:00:48]} Ne8 {[%emt 0:01:33]} 32. Rec1 {[%emt 0:10:17]} Rxe5 {[%emt 0:26:43]} 33. Rc4 {[%emt 0:03:11]} Rxe4 {[%emt 0:02:19]} 34. Rxe4 {[%emt 0:01:37]} Bxc5 {[%emt 0:00:44]} 35. Be5 {[%emt 0:08:17]} Bd6 {[%emt 0:02:37]} 36. Rc1 {[%emt 0:00:55]} Qd7 {[%emt 0:04:01]} 37. Ba1 {[%emt 0:05:08]} Bf8 {[%emt 0:00:21]} 38. Qf4 {[%emt 0:01:33]} Qxa4 {[%emt 0:03:40]} 39. Rec4 {[%emt 0:01:36]} Qd7 {[%emt 0:03:34]} 40. Rd4 {[%emt 0:13:41]} Rxd4 {[%emt 0:00:31]} 41. Bxd4 {[%emt 0:30:15]} b3 {[%emt 0:34:17]} 42. Qe3 {[%emt 0:01:03]} a4 {[%emt 0:01:23]} 43. h3 {[%emt 0:00:33]} a3 {[%emt 0:00:25]} 44. Rb1 {[%emt 0:00:47]} b2 {[%emt 0:00:15]} 45. Bxb2 {[%emt 0:01:07]} axb2 {[%emt 0:02:59]} 46. Rxb2 {[%emt 0:00:06]} Nf6 {[%emt 0:01:55]} 47. Rb8 {[%emt 0:00:41]} Kg7 {[%emt 0:02:13]} 48. g5 {[%emt 0:02:37]} Qd1+ {[%emt 0:00:09]} 49. Kg2 {[%emt 0:00:15]} Qd5+ {[%emt 0:00:08]} 50. Kg1 {[%emt 0:00:11]} Ne4 {[%emt 0:00:08]} 51. h4 {[%emt 0:01:13]} Bc5 {[%emt 0:00:11]} 0-1

[Event "Int SVK-ch Open 2020"]
[Site "Drienica"]
[Date "2020.08.08"]
[Round "2.24"]
[White "Furman, Slavomir"]
[Black "Magdova, Lucia"]
[Result "1-0"]
[ECO "D20"]
[WhiteElo "1760"]
[BlackElo "1046"]
[Annotator "NA"]
[PlyCount "31"]
[EventDate "2020.08.07"]
[EventType "swiss"]
[EventCountry "SVK"]
[SourceTitle "playchess.com"]
[Source "ChessBase"]
[SourceQuality "1"]
[TimeControl "40/5400+30:1800+30"]

1. d4 {[%emt 0:00:00]} d5 {[%emt 0:00:00]} 2. c4 {[%emt 0:00:14]} dxc4 {[%emt 0:01:25]} 3. e3 {[%emt 0:00:34]} b5 {[%emt 0:05:13]} 4. a4 {[%emt 0:01:17]} Ba6 {[%emt 0:00:55]} 5. axb5 {[%emt 0:02:20]} Bxb5 {[%emt 0:04:14]} 6. b3 {[%emt 0:02:47]} Qd5 {[%emt 0:02:50]} 7. bxc4 {[%emt 0:02:19]} Bxc4 {[%emt 0:01:05]} 8. Qa4+ {[%emt 0:00:43]} Nc6 {[%emt 0:04:38]} 9. Qxc4 {[%emt 0:04:14]} Qf5 {[%emt 0:02:31]} 10. Qxc6+ {[%emt 0:00:55]} Kd8 {[%emt 0:03:04]} 11. Qxa8+ {[%emt 0:00:15]} Kd7 {[%emt 0:01:00]} 12. d5 {[%emt 0:01:17]} e6 {[%emt 0:01:23]} 13. Qc6+ {[%emt 0:02:48]} Kd8 {[%emt 0:01:26]} 14. Rxa7 {[%emt 0:01:14]} Ke7 {[%emt 0:04:51]} 15. d6+ {[%emt 0:03:20]} Kf6 {[%emt 0:00:50]} 16. Qf3 {[%emt 0:00:47]} 1-0

[Event "Int SVK-ch Open 2020"]
[Site "Drienica"]
[Date "2020.08.08"]
[Round "2.25"]
[White "Hros Roman"]
[Black "Tomcikova Zuzana"]
[Result "1-0"]
[ECO "B07"]
[WhiteElo "2203"]
[BlackElo "1776"]
[Annotator "ChessBase"]
[PlyCount "31"]
[EventDate "2020.08.07"]
[EventType "swiss"]
[EventCountry "SVK"]
[SourceTitle "playchess.com"]
[Source "ChessBase"]
[SourceQuality "1"]
[TimeControl "40/5400+30:1800+30"]

1. e4 {[%emt 0:02:45]} d6 {[%emt 0:00:00]} 2. f4 {[%emt 0:00:45]} Nf6 {[%emt 0:00:27]} 3. d3 {[%emt 0:00:33]} g6 {[%emt 0:00:49]} 4. Be2 {[%emt 0:01:16]} Bg7 {[%emt 0:01:14]} 5. Nf3 {[%emt 0:00:10]} Nc6 {[%emt 0:05:17]} 6. O-O {[%emt 0:03:29]} O-O {[%emt 0:10:58]} 7. Qe1 {[%emt 0:04:06]} e5 {[%emt 0:08:49]} 8. fxe5 {[%emt 0:13:42]} dxe5 {[%emt 0:00:36]} 9. c3 {[%emt 0:05:12]} Qe7 {[%emt 0:04:40]} 10. b4 {[%emt 0:13:38]} Nb8 {[%emt 0:13:38]} 11. Qh4 {[%emt 0:03:59]} Nbd7 {[%emt 0:03:09]} 12. Be3 {[%emt 0:05:16]} b6 {[%emt 0:01:47]} 13. Nbd2 {[%emt 0:01:05]} Bb7 {[%emt 0:01:44]} 14. Ng5 {[%emt 0:11:13]} Rad8 {[%emt 0:10:03]} 15. Nxh7 {[%emt 0:01:13]} Rfe8 {[%emt 0:01:30]} 16. Bg5 {[%emt 0:01:15]} 1-0

[Event "Int SVK-ch Open 2020"]
[Site "Drienica"]
[Date "2020.08.08"]
[Round "2.25"]
[White "Sevcik, Ondrej"]
[Black "Paluska, Karol"]
[Result "0-1"]
[ECO "B10"]
[WhiteElo "1017"]
[BlackElo "1871"]
[Annotator "NA"]
[PlyCount "46"]
[EventDate "2020.08.07"]
[EventType "swiss"]
[EventCountry "SVK"]
[SourceTitle "playchess.com"]
[Source "ChessBase"]
[SourceQuality "1"]
[TimeControl "40/5400+30:1800+30"]

1. e4 {[%emt 0:00:00]} c6 {[%emt 0:00:00]} 2. Nf3 {[%emt 0:00:00]} d5 {[%emt 0:00:00]} 3. Nc3 {[%emt 0:00:00]} Nf6 {[%emt 0:00:00]} 4. e5 {[%emt 0:00:19]} Ne4 {[%emt 0:00:00]} 5. d4 {[%emt 0:00:18]} Nxc3 {[%emt 0:03:03]} 6. bxc3 {[%emt 0:00:13] B11: Caro-Kann: Two Knights Variation.} Bg4 {[%emt 0:00:25]} 7. h3 {[%emt 0:00:25]} Bxf3 {[%emt 0:01:07]} 8. Qxf3 {[%emt 0:00:15]} e6 {[%emt 0:00:07]} 9. Bd3 {[%emt 0:01:19]} c5 {[%emt 0:07:52] [#]} 10. Ba3 $146 {[%emt 0:00:32]} ({Predecessor:} 10. Rb1 Qd7 11. Be3 cxd4 12. cxd4 Nc6 13. O-O Be7 14. c4 dxc4 15. Bxc4 O-O 16. Rfd1 {½-½ (56) Munoz Pantoja,M (2434)-Vittorino,C (2301) Barcelona 2015}) 10... Qa5 {[%emt 0:01:28] Double Attack} 11. Bxc5 $2 {[%emt 0:03:40]} (11. Bb2 $17 {was worth a try.}) 11... Bxc5 {[%emt 0:01:02]} 12. dxc5 {[%emt 0:00:17]} Qxc3+ {[%emt 0:00:12]} 13. Ke2 {[%emt 0:00:39]} Qxe5+ {[%emt 0:00:08]} 14. Kd2 {[%emt 0:00:37]} Qg5+ {[%emt 0:07:42]} 15. Ke2 {[%emt 0:01:09]} Nc6 {[%emt 0:02:03]} 16. Bb5 {[%emt 0:00:48]} O-O {[%emt 0:01:48]} 17. h4 $2 {[%emt 0:01:23]} (17. Bxc6 bxc6 18. Rhb1) 17... Qe5+ {[%emt 0:07:10]} 18. Kd2 {[%emt 0:00:29]} Nd4 {[%emt 0:00:54]} 19. Qd3 {[%emt 0:00:32]} Nxb5 {[%emt 0:01:59]} 20. Qxb5 {[%emt 0:00:24]} Qd4+ {[%emt 0:00:34]} 21. Ke2 $19 {[%emt 0:00:22]} Rac8 {[%emt 0:02:58]} 22. Qxb7 {[%emt 0:00:31]} Rxc5 {[%emt 0:00:17]} 23. Qb2 {[%emt 0:00:35]} Qxb2 0-1